fUST/lending_fUST_20250427
["ID","MTS","AMOUNT","RATE_DAILY","PERIOD"]
[359136959,1745729444363,-400.0,0.00017534,2]
[359136960,1745729444372,-400.0,0.00017534,2]
[359136961,1745729444383,-200.0,0.00017534,2]
[359136962,1745729444393,-619.94,0.00017534,2]
[359136963,1745729444402,-162.099151,0.00017706,2]
[359136964,1745729444412,-400.0,0.00017808,2]
[359136965,1745729444423,-400.0,0.00017808,2]
[359136966,1745729444432,-179.84,0.00017808,2]
[359136967,1745729444443,-427.31,0.00017808,2]
[359136968,1745729444452,-248.36,0.00017808,2]
[359136969,1745729444463,-404.84,0.00017808,2]
[359136970,1745729444473,-226.68,0.00017808,2]
[359136971,1745729444482,-476.53,0.00017808,2]
[359136972,1745729444491,-400.0,0.00017808,2]
[359136973,1745729444503,-400.0,0.00017808,2]
[359136974,1745729444512,-400.0,0.00017808,2]
[359136975,1745729444521,-400.0,0.00017808,2]
[359136976,1745729444531,-424.857567,0.00017808,2]
[359136977,1745729444540,-400.0,0.00017808,2]
[359136978,1745729444551,-29.1203404,0.00017808,2]
[359136979,1745729444705,-395.7372266,0.00017808,2]
[359136980,1745729444715,-151.0,0.00017808,2]
[359136981,1745729444725,-774.36,0.00017808,2]
[359136982,1745729444735,-151.0,0.00017808,2]
[359136983,1745729444745,-151.0,0.00017808,2]
[359136984,1745729444757,-400.0,0.00017808,2]
[359136985,1745729444767,-151.0,0.00017808,2]
[359136986,1745729444777,-393.36,0.00017808,2]
[359136987,1745729444786,-13.2579845,0.00017808,2]
[359136988,1745729444798,-386.7420155,0.00017808,2]
[359136989,1745729444809,-168.93,0.00017808,2]
[359136990,1745729444818,-151.0,0.00017808,2]
[359136991,1745729444829,-151.0,0.00017808,2]
[359136992,1745729444839,-151.0,0.00017808,2]
[359136993,1745729444850,-430.02,0.00017808,2]
[359136994,1745729444860,-151.0,0.00017808,2]
[359136995,1745729444870,-400.0,0.00017808,2]
[359136996,1745729444879,-400.0,0.00017808,2]
[359136997,1745729444889,-360.3079845,0.00017808,2]
[359136998,1745729444901,-39.6920155,0.00017808,2]
[359136999,1745729444911,-400.0,0.00017808,2]
[359137000,1745729444921,-151.0,0.00017808,2]
[359137001,1745729444931,-400.0,0.00017808,2]
[359137002,1745729444940,-151.0,0.00017808,2]
[359137003,1745729444951,-448.02,0.00017808,2]
[359137004,1745729444960,-400.0,0.00017808,2]
[359137006,1745729444971,-151.0,0.00017808,2]
[359137007,1745729444982,-151.0,0.00017808,2]
[359137009,1745729444991,-400.0,0.00017808,2]
[359137011,1745729445002,-619.94,0.00017808,2]
[359137013,1745729445012,-587.0,0.0001785,2]
[359137015,1745729445021,-248.25999185,0.000179,2]
[359137017,1745729445031,-303.08799265,0.000179,2]
[359137019,1745729445043,-794.99449691,0.000179,2]
[359137021,1745729445052,-4329.70175943,0.00017942,2]
[359137023,1745729445063,-1450.10799,0.00017942,2]
[359137025,1745729445075,-6804.74424728,0.00017942,2]
[359137027,1745729445086,-160.0,0.00017942,2]
[359137029,1745729445096,-421.1409203,0.00017942,2]
[359137031,1745729445106,-160.0,0.00017942,2]
[359137033,1745729445115,-160.0,0.00017942,2]
[359137035,1745729445125,-840.47993636,0.00017942,2]
[359137037,1745729445134,-160.0,0.00017942,2]
[359137039,1745729445144,-500.0,0.00017973,2]
[359137041,1745729445154,-500.0,0.00017973,2]
[359137043,1745729445163,-500.0,0.00017999,2]
[359137045,1745729445173,-55274.37408054,0.00018,2]
[359137047,1745729445184,-502.10203629,0.00018,2]
[359137077,1745729445518,-639.83149771,0.00015999,2]
[359137079,1745729445529,-30.77901455,0.00015999,2]
[359137080,1745729445540,-151.16090634,0.00015999,2]
[359137082,1745729445550,-501.53740451,0.00016438,2]
[359137084,1745729445561,-400.0,0.00016438,2]
[359137086,1745729445570,-539.50937069,0.00016516,2]
[359137087,1745729445580,-155.1693421,0.00016712,2]
[359137089,1745729445590,-1095.65370875,0.00018,2]
[359137091,1745729445603,-835.4358685,0.00018,2]
[359137093,1745729445614,-985.13637237,0.00018,2]
[359137096,1745729445628,-97329.29793355,0.00018,2]
[359137097,1745729445639,-151.0,0.00018,2]
[359137099,1745729445649,-151.0,0.00018,2]
[359137101,1745729445659,-151.0,0.00018,2]
[359137103,1745729445668,-151.0,0.00018,2]
[359137105,1745729445678,-154.597162,0.00018,2]
[359137107,1745729445687,-151.0,0.00018,2]
[359137109,1745729445697,-151.0,0.00018,2]
[359137111,1745729445707,-151.0,0.00018,2]
[359137113,1745729445717,-151.0,0.00018,2]
[359137115,1745729445727,-151.0,0.00018,2]
[359137117,1745729445736,-424.857567,0.00018,2]
[359137119,1745729445746,-424.857567,0.00018,2]
[359137120,1745729445757,-151.0,0.00018,2]
[359137122,1745729445766,-151.0,0.00018,2]
[359137124,1745729445776,-151.0,0.00018,2]
[359137126,1745729445786,-151.0,0.00018,2]
[359137128,1745729445795,-151.0,0.00018,2]
[359137130,1745729445805,-151.0,0.00018,2]
[359137132,1745729445815,-151.0,0.00018,2]
[359137134,1745729445824,-151.0,0.00018,2]
[359137136,1745729445835,-157.037072,0.00018,2]
[359137138,1745729445846,-153.01141,0.00018,2]
[359137140,1745729445856,-151.0,0.00018,2]
[359137142,1745729445866,-234.98268,0.00018,2]
[359137144,1745729445876,-216.19,0.00018082,2]
[359137146,1745729445886,-400.0,0.00018082,2]
[359137148,1745729445895,-373.21,0.00018082,2]
[359137150,1745729445905,-400.0,0.00018082,2]
[359137152,1745729445915,-400.0,0.00018082,2]
[359137154,1745729445924,-400.0,0.00018082,2]
[359137156,1745729445935,-400.0,0.00018082,2]
[359137158,1745729445945,-400.0,0.00018082,2]
[359137160,1745729445955,-400.0,0.00018082,2]
[359137173,1745729446088,-400.0,0.00018082,2]
[359137175,1745729446099,-244.16772709,0.00018082,2]
[359137176,1745729446109,-276.37,0.00018082,2]
[359137178,1745729446119,-400.0,0.00018082,2]
[359137180,1745729446129,-619.94,0.00018082,2]
[359137182,1745729446139,-400.0,0.00018356,2]
[359137184,1745729446149,-400.0,0.00018356,2]
[359137186,1745729446158,-400.0,0.00018356,2]
[359137188,1745729446167,-400.0,0.00018356,2]
[359137190,1745729446177,-400.0,0.00018356,2]
[359137192,1745729446187,-400.0,0.00018356,2]
[359137194,1745729446196,-400.0,0.00018356,2]
[359137196,1745729446206,-400.0,0.00018356,2]
[359137197,1745729446215,-400.0,0.00018356,2]
[359137199,1745729446225,-619.94,0.00018356,2]
[359137201,1745729446235,-400.0,0.0001863,2]
[359137203,1745729446245,-400.0,0.0001863,2]
[359137205,1745729446255,-454.76,0.0001863,2]
[359137207,1745729446265,-400.0,0.0001863,2]
[359137209,1745729446274,-400.0,0.0001863,2]
[359137211,1745729446284,-548.2,0.0001863,2]
[359137213,1745729446293,-400.0,0.0001863,2]
[359137215,1745729446303,-400.0,0.0001863,2]
[359137217,1745729446312,-400.0,0.0001863,2]
[359137219,1745729446322,-619.94,0.0001863,2]
[359137221,1745729446331,-248.25999163,0.00018659,2]
[359137223,1745729446341,-400.0,0.00018904,2]
[359137225,1745729446350,-400.0,0.00018904,2]
[359137227,1745729446363,-400.0,0.00018904,2]
[359137229,1745729446372,-400.0,0.00018904,2]
[359137230,1745729446382,-400.0,0.00018904,2]
[359137232,1745729446392,-400.0,0.00018904,2]
[359137234,1745729446404,-400.0,0.00018904,2]
[359137236,1745729446413,-619.94,0.00018904,2]
[359137238,1745729446423,-400.0,0.00019178,2]
[359137240,1745729446433,-400.0,0.00019178,2]
[359137242,1745729446442,-400.0,0.00019178,2]
[359137243,1745729446451,-400.0,0.00019178,2]
[359137245,1745729446461,-191.26,0.00019178,2]
[359137247,1745729446470,-400.0,0.00019178,2]
[359137249,1745729446479,-400.0,0.00019178,2]
[359137251,1745729446489,-619.94,0.00019178,2]
[359137253,1745729446498,-300.0,0.00019178,2]
[359137255,1745729446510,-2518.084526,0.00019178,2]
[359137257,1745729446519,-248.25999163,0.00019417,2]
[359137259,1745729446528,-400.0,0.00019452,2]
[359137261,1745729446538,-400.0,0.00019452,2]
[359137263,1745729446547,-535.44,0.00019452,2]
[359137265,1745729446556,-400.0,0.00019452,2]
[359137267,1745729446565,-454.05,0.00019452,2]
[359137269,1745729446574,-400.0,0.00019452,2]
[359137271,1745729446584,-619.94,0.00019452,2]
[359137272,1745729446594,-823.0,0.00019538,2]
[359137274,1745729446603,-311.55222858,0.00019688,2]
[359137276,1745729446613,-400.0,0.00019726,2]
[359137279,1745729446622,-400.0,0.00019726,2]
[359137282,1745729446632,-400.0,0.00019726,2]
[359137284,1745729446642,-400.0,0.00019726,2]
[359137286,1745729446651,-619.94,0.00019726,2]
[359137288,1745729446661,-163.402258,0.00019916,3]
[359137290,1745729446671,-400.0,0.0002,2]
[359137292,1745729446680,-504.76,0.0002,2]
[359137294,1745729446690,-400.0,0.0002,2]
[359137296,1745729446700,-400.0,0.0002,2]
[359137298,1745729446711,-2000.0,0.0002,4]
[359137300,1745729446721,-619.94,0.0002,2]
[359137302,1745729446730,-248.25999163,0.00020176,2]
[359137304,1745729446741,-400.0,0.00020273,2]
[359137306,1745729446751,-400.0,0.00020273,2]
[359137308,1745729446761,-400.0,0.00020273,2]
[359137309,1745729446771,-619.94,0.00020273,2]
[359137311,1745729446780,-275.95,0.00020547,2]
[359137313,1745729446790,-400.0,0.00020547,2]
[359137315,1745729446799,-324.83,0.00020547,2]
[359137317,1745729446809,-619.94,0.00020547,2]
[359137319,1745729446819,-400.0,0.00020821,2]
[359137321,1745729446828,-619.94,0.00020821,2]
[359137323,1745729446837,-600.0,0.00020822,2]
[359137325,1745729446847,-248.25999163,0.00020934,3]
[359137327,1745729446856,-2000.0,0.00021,4]
[359137329,1745729446866,-157.47,0.00021,2]
[359137330,1745729446875,-433.6723,0.00021095,2]
[359137332,1745729446884,-619.94,0.00021095,2]
[359137334,1745729446894,-500.0,0.00021164,2]
[359137336,1745729446903,-207.4,0.00021191,2]
[359137338,1745729446913,-619.94,0.00021369,2]
[359137340,1745729446924,-522.0,0.00021385,2]
[359137342,1745729446935,-619.94,0.00021643,2]
[359137344,1745729446944,-248.25999163,0.00021693,3]
[359137346,1745729446954,-619.94,0.00021917,2]
[359137348,1745729446963,-150.0,0.00021918,2]
[359137350,1745729446972,-1000.0,0.00021952,2]
[359137352,1745729446982,-1000.0,0.00021952,2]
[359137354,1745729446991,-500.0,0.00021952,2]
[359137356,1745729447001,-500.0,0.00021952,2]
[359137358,1745729447012,-1000.0,0.00021952,2]
[359137360,1745729447022,-500.0,0.00021952,2]
[359137362,1745729447031,-1000.0,0.00021952,2]
[359137363,1745729447040,-1000.0,0.00021952,2]
[359137365,1745729447050,-500.0,0.00021952,2]
[359137367,1745729447059,-2597.51,0.00022,2]
[359137369,1745729447069,-2000.0,0.00022,4]
[359137371,1745729447079,-619.94,0.00022191,2]
[359137373,1745729447089,-1045.43850107,0.00022252,2]
[359137375,1745729447098,-769.07007306,0.00022252,2]
[359137377,1745729447108,-664.67150096,0.00022252,2]
[359137379,1745729447118,-1000.0,0.00022252,2]
[359137381,1745729447127,-500.0,0.0002226,2]
[359137383,1745729447137,-2247.0,0.00022288,2]
[359137385,1745729447147,-150.0,0.00022288,2]
[359137387,1745729447156,-150.0,0.00022288,2]
[359137388,1745729447166,-150.977,0.00022288,2]
[359137390,1745729447176,-194.708,0.00022288,2]
[359137392,1745729447185,-248.25999163,0.00022452,4]
[359137394,1745729447195,-619.94,0.00022465,2]
[359137396,1745729447206,-400.0,0.00022466,2]
[359137398,1745729447215,-900.0,0.00022466,2]
[359137400,1745729447225,-620.10497351,0.00022739,2]
[359137402,1745729447235,-2000.0,0.00023,4]
[359137404,1745729447244,-311.55222858,0.00023038,2]
[359137406,1745729447255,-248.25999163,0.0002321,4]
[359137408,1745729447266,-500.0,0.00023356,2]
[359137410,1745729447277,-497.03,0.0002342,15]
[359137412,1745729447286,-1000.0,0.00023452,2]
[359137413,1745729447296,-800.0,0.00023881,2]
[359137415,1745729447307,-248.25999163,0.00023969,5]
[359137416,1745729447317,-800.0,0.00023988,2]
[359137417,1745729447326,-2000.0,0.00024,4]
[359137418,1745729447335,-19071.11825587,0.00024,10]
[359137419,1745729447345,-840.47993636,0.00024,10]
[359137420,1745729447358,-421.1409203,0.00024,10]
[359137421,1745729447368,-160.0,0.00024,10]
[359137422,1745729447378,-160.0,0.00024,10]
[359137423,1745729447388,-804.95915229,0.00024021,2]
[359137424,1745729447397,-800.0,0.00024054,2]
[359137425,1745729447408,-1200.0,0.0002411,2]
[359137426,1745729447418,-500.0,0.0002439,2]
[359137427,1745729447428,-500.0,0.00024452,2]
[359137428,1745729447438,-153.0,0.0002463,2]
[359137429,1745729447449,-153.0,0.0002463,2]
[359137430,1745729447458,-361.102532,0.00024646,2]
[359137431,1745729447468,-500.0,0.00024658,2]
[359137432,1745729447477,-500.0,0.00024658,2]
[359137433,1745729447487,-484.18436395,0.00024658,2]
[359137434,1745729447496,-248.25999163,0.00024728,5]
[359137435,1745729447507,-2000.0,0.000248,2]
[359137436,1745729447516,-2000.0,0.000248,2]
[359137437,1745729447525,-2000.0,0.000248,2]
[359137438,1745729447535,-207.82,0.000248,16]
[359137439,1745729447546,-1968.43982049,0.000248,2]
[359137440,1745729447555,-10703.34168949,0.00024853,2]
[359137441,1745729447566,-10703.34168949,0.00024871,2]
[359137442,1745729447576,-4222.57674554,0.00024871,2]
[359137443,1745729447591,-1239.80000001,0.00024871,2]
[359137444,1745729447602,-639.12583894,0.00024871,2]
[359137445,1745729447718,-253.00448904,0.00016438,2]
[359137446,1745729447731,-442.39551096,0.00016438,2]
[359137447,1745729447740,-400.0,0.00016438,2]
[359137448,1745729447751,-695.4,0.00016712,2]
[359137449,1745729447762,-154.436824,0.00016712,2]
[359137450,1745729447772,-552.78220145,0.00016986,2]
[359137451,1745729447788,-142.61779855,0.00016986,2]
[359137452,1745729447798,-695.4,0.0001726,2]
[359137453,1745729447807,-445.90038063,0.00017534,2]
[359137454,1745729447951,-400.0,0.00016712,2]
[359137455,1745729447962,-334.99,0.00016986,2]
[359137456,1745729447971,-249.49961937,0.00017534,2]
[359137457,1745729447981,-695.4,0.00017808,2]
[359137458,1745729447990,-695.4,0.00018082,2]
[359137459,1745729448000,-695.4,0.00018356,2]
[359137460,1745729448010,-695.4,0.0001863,2]
[359137461,1745729448019,-695.4,0.00018904,2]
[359137462,1745729448028,-695.4,0.00019178,2]
[359137463,1745729448038,-695.4,0.00019452,2]
[359137464,1745729448048,-695.4,0.00019726,2]
[359137465,1745729448057,-695.4,0.0002,2]
[359137466,1745729448067,-695.4,0.00020273,2]
[359137467,1745729448077,-695.4,0.00020547,2]
[359137468,1745729448086,-695.4,0.00020821,2]
[359137469,1745729448096,-695.4,0.00021095,2]
[359137470,1745729448106,-695.4,0.00021369,2]
[359137471,1745729448115,-695.4,0.00021643,2]
[359137472,1745729448126,-695.4,0.00021917,2]
[359137473,1745729448136,-695.4,0.00022191,2]
[359137474,1745729448146,-403.0,0.00022288,2]
[359137475,1745729448156,-695.4,0.00022465,2]
[359137476,1745729448165,-695.40915769,0.00022739,2]
[359137477,1745729448176,-4601.839105,0.00024871,2]
[359137478,1745729448185,-500.0,0.00024873,2]
[359137479,1745729448194,-8075.27034879,0.00024873,2]
[359137480,1745729448214,-253.9710398,0.00024873,2]
[359137487,1745729706467,401.9204388,0.00019856,16]
[359137488,1745729706730,401.9204388,0.00021356,31]
[359137495,1745729913500,361.72839492,0.00020811,19]
[359137514,1745730638487,-707.73332768,0.00014346,2]
[359137515,1745730638497,-300.0,0.00014443,2]
[359137516,1745730638508,-300.0,0.00014443,2]
[359137517,1745730638518,-247.56279942,0.00014444,2]
[359137518,1745730638528,-617.87692401,0.00014444,2]
[359137519,1745730638538,-50000.0,0.00014445,2]
[359137520,1745730638548,-24900.0,0.00014446,2]
[359137521,1745730638558,-1298.4942926,0.00014465,2]
[359137522,1745730638568,-500.0,0.00014473,2]
[359137523,1745730638578,-500.0,0.00014473,2]
[359137524,1745730638588,-500.0,0.00014473,2]
[359137525,1745730638597,-500.0,0.00014473,2]
[359137526,1745730638607,-500.0,0.00014473,2]
[359137527,1745730638616,-500.0,0.00014473,2]
[359137528,1745730638626,-500.0,0.00014473,2]
[359137529,1745730638635,-250.0,0.000148,2]
[359137530,1745730638644,-1000.0,0.000148,2]
[359137531,1745730638654,-1284.7414879,0.0001539,2]
[359137532,1745730638663,-9315.6634351,0.00015467,2]
[359137533,1745730638673,-500.0,0.00015473,2]
[359137534,1745730638682,-505.79077755,0.00015473,2]
[359137535,1745730638692,-186.3447544,0.0001556,2]
[359137536,1745730638701,-420.0,0.00015816,2]
[359137537,1745730638711,-290.48147579,0.000159,2]
[359137538,1745730638720,-1554.66773364,0.00016067,2]
[359137539,1745730638730,-261.13770832,0.00016164,2]
[359137540,1745730638741,-500.0,0.00016164,2]
[359137541,1745730638751,-1451.14664405,0.00016338,2]
[359137542,1745730638760,-3899.04371927,0.00016434,2]
[359137543,1745730638770,-500.0,0.00016438,2]
[359137544,1745730638779,-400.0,0.00016438,2]
[359137545,1745730638789,-1658.59,0.00016438,2]
[359137546,1745730638798,-400.0,0.00016438,2]
[359137547,1745730638810,-400.0,0.00016438,2]
[359137548,1745730638821,-400.0,0.00016438,2]
[359137549,1745730638830,-400.0,0.00016438,2]
[359137550,1745730638840,-500.0,0.00016438,2]
[359137551,1745730638851,-504.92391122,0.00016438,2]
[359137552,1745730638860,-500.0,0.00016438,2]
[359137553,1745730638870,-169.15430033,0.00016438,2]
[359137554,1745730638879,-358.1998765,0.00016438,2]
[359137555,1745730638890,-500.0,0.00016438,2]
[359137556,1745730638900,-500.0,0.00016438,2]
[359137557,1745730638911,-500.0,0.00016438,2]
[359137558,1745730638920,-500.0,0.00016438,2]
[359137559,1745730638929,-400.0,0.00016438,2]
[359137560,1745730638939,-500.0,0.00016438,2]
[359137561,1745730638948,-500.0,0.00016438,2]
[359137562,1745730638958,-505.54865435,0.00016438,2]
[359137563,1745730638967,-503.48207283,0.00016438,2]
[359137564,1745730638977,-500.0,0.00016438,2]
[359137565,1745730638987,-528.91667244,0.00016438,2]
[359137566,1745730638996,-500.0,0.00016438,2]
[359137567,1745730639006,-500.0,0.00016438,2]
[359137568,1745730639015,-432.16,0.00016438,2]
[359137569,1745730639025,-507.48760639,0.00016438,2]
[359137570,1745730639035,-500.0,0.00016438,2]
[359137571,1745730639044,-505.64839355,0.00016438,2]
[359137572,1745730639054,-504.64730258,0.00016438,2]
[359137573,1745730639063,-521.73422921,0.00016438,2]
[359137574,1745730639073,-505.10309192,0.00016438,2]
[359137575,1745730639082,-500.0,0.00016438,2]
[359137576,1745730639091,-500.0,0.00016438,2]
[359137577,1745730639101,-400.0,0.00016438,2]
[359137578,1745730639110,-500.0,0.00016438,2]
[359137579,1745730639120,-500.0,0.00016438,2]
[359137580,1745730639130,-500.0,0.00016438,2]
[359137581,1745730639139,-192.62333183,0.00016438,2]
[359137582,1745730639149,-400.0,0.00016438,2]
[359137583,1745730639159,-400.0,0.00016438,2]
[359137584,1745730639169,-400.0,0.00016438,2]
[359137585,1745730639178,-506.8232759,0.00016438,2]
[359137586,1745730639188,-500.0,0.00016438,2]
[359137587,1745730639198,-506.00723493,0.00016438,2]
[359137588,1745730639208,-400.0,0.00016438,2]
[359137589,1745730639217,-500.0,0.00016438,2]
[359137590,1745730639227,-400.0,0.00016438,2]
[359137591,1745730639236,-400.0,0.00016438,2]
[359137592,1745730639246,-500.0,0.00016438,2]
[359137593,1745730639255,-500.0,0.00016438,2]
[359137594,1745730639265,-400.0,0.00016438,2]
[359137595,1745730639274,-402.48,0.00016438,2]
[359137596,1745730639284,-500.0,0.00016438,2]
[359137597,1745730639294,-1447.86,0.00016438,2]
[359137598,1745730639303,-1661.89,0.00016438,2]
[359137599,1745730639313,-153.06216664,0.00016438,2]
[359137600,1745730639323,-500.0,0.00016438,2]
[359137601,1745730639332,-400.0,0.00016438,2]
[359137602,1745730639342,-400.0,0.00016438,2]
[359137603,1745730639352,-429.27,0.00016438,2]
[359137604,1745730639362,-1848.53,0.00016438,2]
[359137605,1745730639374,-400.0,0.00016438,2]
[359137606,1745730639383,-500.0,0.00016438,2]
[359137607,1745730639394,-500.0,0.00016438,2]
[359137608,1745730639403,-165.40510812,0.00016438,2]
[359137609,1745730639414,-400.0,0.00016438,2]
[359137610,1745730639424,-512.26572073,0.00016438,2]
[359137611,1745730639434,-411.94558683,0.00016438,2]
[359137612,1745730639444,-1858.63,0.00016438,2]
[359137613,1745730639454,-514.50365484,0.00016438,2]
[359137614,1745730639464,-159.95449453,0.00016438,2]
[359137615,1745730639473,-513.22764237,0.00016438,2]
[359137616,1745730639483,-400.0,0.00016438,2]
[359137617,1745730639493,-400.0,0.00016438,2]
[359137618,1745730639503,-400.0,0.00016438,2]
[359137619,1745730639513,-2136.55,0.00016438,2]
[359137620,1745730639522,-499.91415934,0.00016438,2]
[359137621,1745730639530,-513.22647336,0.00016438,2]
[359137622,1745730639539,-431.58,0.00016438,2]
[359137623,1745730639549,-500.0,0.00016438,2]
[359137624,1745730639558,-400.0,0.00016438,2]
[359137625,1745730639566,-500.0,0.00016438,2]
[359137626,1745730639575,-400.0,0.00016438,2]
[359137627,1745730639585,-400.0,0.00016438,2]
[359137628,1745730639594,-400.0,0.00016438,2]
[359137629,1745730639603,-400.0,0.00016438,2]
[359137630,1745730639612,-304.36844838,0.00016438,2]
[359137631,1745730639622,-400.0,0.00016438,2]
[359137632,1745730639632,-400.0,0.00016438,2]
[359137633,1745730639643,-400.0,0.00016438,2]
[359137634,1745730639653,-400.0,0.00016438,2]
[359137635,1745730639663,-400.0,0.00016438,2]
[359137636,1745730639673,-400.0,0.00016438,2]
[359137637,1745730639682,-400.0,0.00016438,2]
[359137638,1745730639693,-400.0,0.00016438,2]
[359137639,1745730639703,-400.0,0.00016438,2]
[359137640,1745730639713,-400.0,0.00016438,2]
[359137641,1745730639724,-400.0,0.00016438,2]
[359137642,1745730639734,-400.0,0.00016438,2]
[359137643,1745730639745,-400.0,0.00016438,2]
[359137644,1745730639756,-465.24,0.00016438,2]
[359137645,1745730639767,-500.0,0.00016438,2]
[359137646,1745730639776,-400.0,0.00016438,2]
[359137647,1745730639786,-503.98511024,0.00016438,2]
[359137648,1745730639797,-400.0,0.00016438,2]
[359137649,1745730639807,-507.30892594,0.00016438,2]
[359137650,1745730639820,-400.0,0.00016438,2]
[359137651,1745730639830,-503.55562547,0.00016438,2]
[359137652,1745730639840,-503.90711056,0.00016438,2]
[359137653,1745730639850,-400.0,0.00016438,2]
[359137654,1745730639861,-500.0,0.00016438,2]
[359137655,1745730639870,-400.0,0.00016438,2]
[359137656,1745730639880,-400.0,0.00016438,2]
[359137657,1745730639892,-500.0,0.00016438,2]
[359137658,1745730639901,-500.0,0.00016438,2]
[359137659,1745730639910,-500.0,0.00016438,2]
[359137660,1745730639920,-500.0,0.00016438,2]
[359137661,1745730639931,-504.04331699,0.00016438,2]
[359137662,1745730639942,-500.0,0.00016438,2]
[359137663,1745730639951,-506.76540462,0.00016438,2]
[359137664,1745730639961,-194.6429155,0.00016438,2]
[359137665,1745730639970,-500.0,0.00016438,2]
[359137666,1745730639979,-504.84224886,0.00016438,2]
[359137667,1745730639989,-500.0,0.00016438,2]
[359137668,1745730639998,-500.0,0.00016438,2]
[359137669,1745730640006,-500.0,0.00016438,2]
[359137670,1745730640015,-500.0,0.00016438,2]
[359137671,1745730640023,-500.0,0.00016438,2]
[359137672,1745730640031,-400.0,0.00016438,2]
[359137673,1745730640040,-400.0,0.00016438,2]
[359137674,1745730640049,-504.15028281,0.00016438,2]
[359137675,1745730640059,-400.0,0.00016438,2]
[359137676,1745730640070,-500.0,0.00016438,2]
[359137677,1745730640081,-500.0,0.00016438,2]
[359137678,1745730640091,-500.0,0.00016438,2]
[359137679,1745730640101,-500.0,0.00016438,2]
[359137680,1745730640111,-500.0,0.00016438,2]
[359137681,1745730640122,-500.0,0.00016438,2]
[359137682,1745730640132,-500.0,0.00016438,2]
[359137683,1745730640144,-500.0,0.00016438,2]
[359137684,1745730640156,-407.07,0.00016438,2]
[359137685,1745730640166,-508.50504994,0.00016438,2]
[359137686,1745730640176,-500.0,0.00016438,2]
[359137687,1745730640187,-500.0,0.00016438,2]
[359137688,1745730640199,-500.0,0.00016438,2]
[359137689,1745730640209,-500.0,0.00016438,2]
[359137690,1745730640218,-500.0,0.00016438,2]
[359137691,1745730640228,-400.0,0.00016438,2]
[359137692,1745730640237,-844.25,0.00016438,2]
[359137693,1745730640247,-501.99568592,0.00016438,2]
[359137694,1745730640257,-500.0,0.00016438,2]
[359137695,1745730640266,-500.0,0.00016438,2]
[359137696,1745730640276,-500.0,0.00016438,2]
[359137697,1745730640287,-2648.69,0.00016438,2]
[359137698,1745730640297,-500.0,0.00016438,2]
[359137699,1745730640307,-500.0,0.00016438,2]
[359137700,1745730640318,-3545.17,0.00016438,2]
[359137701,1745730640328,-500.0,0.00016438,2]
[359137702,1745730640338,-400.0,0.00016438,2]
[359137703,1745730640348,-2836.16,0.00016438,2]
[359137704,1745730640358,-500.68212434,0.00016438,2]
[359137705,1745730640367,-500.0,0.00016438,2]
[359137706,1745730640377,-2615.34,0.00016438,2]
[359137707,1745730640387,-612.79,0.00016438,2]